[Event "German Bundesliga 2023-24"]
[Site "Germany"]
[Date "2024.02.04"]
[Round "8.9"]
[White "Duda, Jan-Krzysztof"]
[Black "Santos Latasa, Jaime"]
[Result "1/2-1/2"]
[ECO "E04"]
[WhiteElo "2726"]
[BlackElo "2615"]
[Annotator "TA"]
[PlyCount "104"]
[EventDate "2023.10.20"]
[EventType "team-tourn"]
[EventCountry "GER"]
[SourceTitle "playchess.com"]
[Source "ChessBase"]
[SourceQuality "1"]
[TimeControl "40/6000+30:3000+30"]

{[%evp 50,104,21,19,18,20,18,22,15,-129,-133,-175,-164,-472,-334,-334,-189,-497,-60,-48,-51,-51,-54,-68,-64,-64,-65,-68,-67,-69,-54,-54,-66,-79,-79,-76,-53,-50,-20,-20,0,-48,-32,-36,-55,-68,-12,-20,-20,-60,-20,-60,-60,-60,-60,-60,-60]} 1. Nf3 {[%emt 0:00:03]} d5 {[%emt 0:00:17]} 2. g3 {[%emt 0:00:07]} Nf6 {[%emt 0:00:31]} 3. Bg2 {[%emt 0:00:07]} c5 {[%emt 0:00:48]} 4. O-O {[%emt 0:00:28]} Nc6 {[%emt 0:00:08]} 5. d4 {[%emt 0:00:08]} e6 {[%emt 0:00:07]} 6. c4 {[%emt 0:00:07]} dxc4 {[%emt 0:00:05]} 7. Qa4 {[%emt 0:00:06]} Bd7 {[%emt 0:00:18]} 8. Qxc4 {[%emt 0:00:11]} b5 {[%emt 0:00:49]} 9. Qd3 {[%emt 0:00:30]} c4 {[%emt 0:00:20]} 10. Qc2 {[%emt 0:00:08] E04: Open Catalan: 5 Nf3.} Be7 {[%emt 0:00:26]} 11. Nc3 {[%emt 0:04:40]} O-O {[%emt 0:13:15]} 12. Bg5 {[%emt 0:03:22]} Qb6 {[%emt 0:06:47]} 13. a3 {[%emt 0:12:05]} Rac8 {[%emt 0:04:59]} 14. e4 $146 {[%emt 0:05:16]} ({Predecessor:} 14. Rad1 h6 15. Bxf6 Bxf6 16. d5 Nd4 17. Nxd4 Bxd4 18. dxe6 Bxe6 19. Nd5 Bxd5 20. Bxd5 {½-½ Le,H (2248)-Vo,T (2335) VIE-chT Hanoi 2022 (8.5)}) 14... b4 {[%emt 0:05:56]} 15. axb4 {[%emt 0:09:15]} Nxb4 {[%emt 0:00:38]} 16. Qe2 {[%emt 0:00:29]} h6 {[%emt 0:02:55]} 17. Be3 {[%emt 0:01:57]} Ng4 {[%emt 0:02:19]} 18. Bc1 {[%emt 0:09:21]} Nf6 {[%emt 0:02:35]} 19. Be3 {[%emt 0:00:07]} Ng4 {[%emt 0:00:07]} 20. Bc1 {[%emt 0:00:07]} Nf6 {[%emt 0:00:05]} 21. Rd1 {[%emt 0:00:12]} a6 {[%emt 0:06:49]} 22. Ne5 {[%emt 0:08:01]} Bb5 {[%emt 0:00:38]} 23. Be3 {[%emt 0:00:14]} Rfd8 {[%emt 0:01:33]} 24. d5 {[%emt 0:13:20]} Bc5 {[%emt 0:07:14]} 25. Nxf7 {[%emt 0:03:05]} Kxf7 {[%emt 0:02:16]} 26. dxe6+ $1 {[%emt 0:00:30]} Kg8 $1 {[%emt 0:25:26]} (26... Kxe6 27. e5 Bxe3 28. exf6 $16) 27. e5 {[%emt 0:11:53]} Bxe3 $1 {[%emt 0:08:47]} 28. exf6 {[%emt 0:01:04]} Qxe6 $1 {[%emt 0:00:41]} 29. fxg7 {[%emt 0:08:39] [#]} (29. Qxe3 $11 Qxf6 30. Bb7 Rxd1+ 31. Rxd1) 29... Bxf2+ $1 $17 {[%emt 0:01:04]} 30. Kxf2 {[%emt 0:08:22]} Nd3+ {[%emt 0:00:27]} 31. Kg1 $2 {[%emt 0:03:17]} (31. Kf1 {nothing else works.} Qf6+ 32. Qf3 Qxg7 33. Qe3) 31... Qb6+ $19 {[%emt 0:00:54]} 32. Kf1 {[%emt 0:00:01]} Qf6+ {[%emt 0:02:29]} (32... Rc7 $142 {...Rf7+ is the strong threat.} 33. Bf3 Re7 (33... Rxg7 34. Nxb5 axb5 35. Ra8 $17) (33... Kxg7 34. Nd5 $11) 34. Rxd3 (34. Bd5+ $2 Rxd5 35. Nxd5 Rf7+ 36. Kg2 Qb7 $19) 34... Rxe2 35. Rxd8+ Qxd8 36. Bxe2 Qd2 (36... Kxg7 37. Rd1 $19)) 33. Bf3 $2 {[%emt 0:02:55]} (33. Qf3 Qxg7 34. Qe3) 33... Ne5 $2 {[%emt 0:04:52]} (33... Kxg7 $2 34. Kg2 Re8 35. Qd2 $19) (33... Qxg7 34. Qe6+ Qf7 35. Qxf7+ (35. Qxh6 $2 Qxf3+ 36. Kg1 Qf2+ 37. Kh1 Bc6+ $19) 35... Kxf7 36. Bg4 $11) (33... Re8 $19 34. Ne4 Qd4 (34... Qxb2 35. Qxb2 Nxb2 36. Nf6+ Kxg7 37. Nxe8+ Rxe8 38. Rdc1 $14) (34... Qxg7 $2 35. Qe3 $19)) 34. Nxb5 $1 $15 {[%emt 0:01:05]} axb5 {[%emt 0:01:40]} (34... Qxf3+ $2 35. Qxf3 Nxf3 36. Nd6 $16) 35. Ra3 {[%emt 0:02:45]} Rd3 {[%emt 0:02:36]} (35... Qxg7 36. Rxd8+ Rxd8 37. Re3 Nxf3 38. Rxf3 $11) 36. Rdxd3 {[%emt 0:00:39]} cxd3 {[%emt 0:00:05]} 37. Rxd3 {[%emt 0:00:05]} Nxd3 {[%emt 0:00:24]} 38. Qxd3 {[%emt 0:00:04]} Rd8 {[%emt 0:01:11]} (38... Qxg7 39. Qxb5 Qf6 40. Qd5+ Kh8 41. b4 $17) 39. Qe2 {[%emt 0:02:10]} Kxg7 {[%emt 0:00:17]} 40. Kg2 {[%emt 0:00:12]} Qg5 {[%emt 0:00:28]} 41. Qe6 {[%emt 0:50:23]} Rd2+ {[%emt 0:52:25]} 42. Kh3 {[%emt 0:01:35]} Qf6 {[%emt 0:00:24]} (42... Rxb2 43. Qd7+ Kf8 44. Qd6+ Kf7 45. Bd5+ Ke8 (45... Kg7 46. Qd7+ Kh8 47. Qc8+ Kh7 48. Qd7+ Kh8 49. Qe8+ Kh7 50. Qf7+ Qg7 51. Qf5+ Qg6 52. Qd7+ Qg7 53. Be4+ Kh8 54. Qc8+ Qg8 55. Qf5 $11) 46. Qc6+ Kd8 47. Qd6+ Kc8 (47... Ke8 48. Qe6+ Qe7 49. Qc8+ Qd8 50. Qe6+ Qe7 51. Qg6+ Kd8 52. Qb6+ Ke8 53. Bc6+ Kf7 54. Bd5+ Kg7 55. Qd4+ Qf6 56. Qg4+ Qg5 57. Qd7+ Kh8 58. Qe8+ Kh7 59. Qf7+ Qg7 60. Qf5+ Qg6 61. Qd7+ Kh8 62. Qd8+ Kh7 63. Qe7+ Qg7 64. Be4+ Kh8 65. Qe8+ Qg8 66. Qc6 $11) 48. Qe6+ Kd8 49. Qd6+ Ke8 50. Bc6+ Kf7 51. Bd5+ Ke8 $11 (51... Kg7 52. Qd7+ Kh8 53. Qc8+ Kh7 54. Qb7+ Qg7 55. Be4+ Kh8 56. Qb8+ Qg8 57. Qe5+ Qg7 58. Qe8+ Qg8 59. Qd7 $11)) 43. Qg4+ {[%emt 0:01:45]} Kf7 {[%emt 0:04:41]} 44. Qh5+ $1 {[%emt 0:00:00]} Kg7 {[%emt 0:00:00]} 45. Qg4+ {[%emt 0:00:00]} Kh8 {[%emt 0:00:00]} 46. b4 {[%emt 0:00:00]} Rd4 {[%emt 0:00:00]} 47. Qc8+ {[%emt 0:00:00]} Qd8 {[%emt 0:00:00]} (47... Kg7 $1 $15) 48. Qe6 {[%emt 0:00:00]} (48. Qf5 {simplifies} Qd7 49. Qxd7 Rxd7 50. Bc6) 48... Kg7 {[%emt 0:00:00]} 49. Bc6 {[%emt 0:00:00]} Qg5 {[%emt 0:00:00]} 50. Be8 {[%emt 0:00:00]} Qf6 {[%emt 0:00:00]} ({Of course not} 50... Rxb4 51. Qf7+ Kh8 52. Bd7 $11 (52. Qf8+ Qg8 $11)) 51. Qxf6+ {[%emt 0:00:00]} Kxf6 {[%emt 0:00:00]} 52. Bxb5 {[%emt 0:00:00]} Rxb4 {[%emt 0:00:00]} 1/2-1/2

[Event "German Bundesliga 2023-24"]
[Site "Germany"]
[Date "2024.02.04"]
[Round "8.9"]
[White "Navara, David"]
[Black "Cheparinov, Ivan"]
[Result "1/2-1/2"]
[ECO "D78"]
[WhiteElo "2679"]
[BlackElo "2649"]
[Annotator "TA"]
[PlyCount "104"]
[EventDate "2023.10.20"]
[EventType "team-tourn"]
[EventCountry "GER"]
[SourceTitle "playchess.com"]
[Source "ChessBase"]
[SourceQuality "1"]
[TimeControl "40/6000+30:3000+30"]

{[%evp 15,104,0,5,0,0,0,0,0,0,0,14,0,8,-7,-7,0,-3,-11,-12,-26,-26,-26,-26,-27,-26,-26,-26,-26,-26,-26,-26,-26,-26,-26,-26,-26,-26,-29,-28,-37,-20,-20,-20,-20,-20,-20,0,-20,0,-20,0,-20,0,-20,0,-20,0,-20,0,-20,0,-20,0,-27,0,-27,0,-45,0,-82,0,-56,-30,-39,0,-106,0,-64,0,-64,0,-60,-47,-65,-28,-26,-33,-70,-31,-15,-14]} 1. Nf3 {[%emt 0:00:01]} d5 {[%emt 0:00:10]} 2. g3 {[%emt 0:00:04]} g6 {[%emt 0:00:09]} 3. Bg2 {[%emt 0:00:17]} Bg7 {[%emt 0:00:06]} 4. d4 {[%emt 0:00:07]} Nf6 {[%emt 0:00:06]} 5. O-O {[%emt 0:00:10]} O-O {[%emt 0:00:04]} 6. c4 {[%emt 0:00:05]} c6 {[%emt 0:00:26]} 7. Qb3 {[%emt 0:00:20]} Qb6 {[%emt 0:04:19]} 8. Nc3 {[%emt 0:00:21]} Rd8 {[%emt 0:01:24]} 9. Na4 {[%emt 0:02:53]} (9. Bf4 {keeps more tension.} dxc4 10. Qxc4 Qxb2 11. Bc7) 9... Qxb3 {[%emt 0:03:24]} 10. axb3 {[%emt 0:00:07][%cal Oa4b6] [#] Hoping for Nb6!} Na6 $1 {[%emt 0:00:39]} 11. Bf4 {[%emt 0:00:19]} Bf5 {[%emt 0:04:48]} 12. Rfc1 {[%emt 0:03:24]} h6 {[%emt 0:05:45]} 13. h4 {[%emt 0:04:08]} e6 {[%emt 0:04:59]} 14. Be5 {[%emt 0:21:35]} Nd7 {[%emt 0:13:24]} 15. Bxg7 {[%emt 0:01:01]} Kxg7 {[%emt 0:00:02]} 16. cxd5 {[%emt 0:07:16]} exd5 {[%emt 0:01:29]} 17. Nc5 {[%emt 0:00:10]} Naxc5 {[%emt 0:01:35]} 18. dxc5 {[%emt 0:00:18]} Be4 {[%emt 0:00:10]} 19. Nd4 {[%emt 0:00:08]} Bxg2 {[%emt 0:00:06]} 20. Kxg2 {[%emt 0:00:06]} h5 {[%emt 0:00:41]} 21. b4 {[%emt 0:02:39]} a6 {[%emt 0:01:45]} 22. Rc3 {[%emt 0:03:40]} Re8 {[%emt 0:00:33]} 23. f3 {[%emt 0:01:57]} Rac8 {[%emt 0:06:08]} 24. Kf2 {[%emt 0:01:41]} Re7 {[%emt 0:00:24]} 25. Raa3 {[%emt 0:08:43]} Rce8 {[%emt 0:01:01]} 26. Re3 {[%emt 0:00:32]} Ne5 {[%emt 0:00:22]} 27. Rac3 {[%emt 0:00:26]} f6 {[%emt 0:07:57]} 28. Kg2 {[%emt 0:07:42]} Kf7 {[%emt 0:00:27]} 29. b3 {[%emt 0:00:34]} Kf8 {[%emt 0:07:44]} 30. Rc1 {[%emt 0:02:44]} Kf7 {[%emt 0:01:37]} 31. Kf1 {[%emt 0:06:49]} Kf8 {[%emt 0:00:56]} 32. Ke1 {[%emt 0:00:33]} Kf7 {[%emt 0:00:22]} 33. Kd1 {[%emt 0:00:09]} Kf8 {[%emt 0:00:20]} 34. Kc2 {[%emt 0:00:24]} Kf7 {[%emt 0:00:11]} 35. Rg1 {[%emt 0:02:02]} Kf8 {[%emt 0:07:53]} 36. Kc3 {[%emt 0:06:26]} Kf7 {[%emt 0:01:59]} 37. Rh1 {[%emt 0:04:44]} Kf8 {[%emt 0:03:07]} 38. Nc2 {[%emt 0:00:25]} Kf7 {[%emt 0:01:50]} 39. Kd4 {[%emt 0:00:13]} Kf8 {[%emt 0:02:24]} 40. Rh2 {[%emt 0:06:03]} Kf7 {[%emt 0:00:53]} 41. Na3 {[%emt 0:51:12]} Kf8 {[%emt 0:58:24][%cal Oe5g4]} 42. Nb1 {[%emt 0:00:22]} (42. Nc2 $11 {keeps the balance.}) 42... Kf7 {[%emt 0:00:30]} (42... Rb8 $17 43. Na3 b6) 43. Nc3 {[%emt 0:00:05]} (43. Na3 $1 $11) 43... Kg7 {[%emt 0:07:44]} 44. Rh1 {[%emt 0:01:55]} Kf7 {[%emt 0:02:37]} 45. Rh3 {[%emt 0:01:42]} (45. Rh2 $1 $11) 45... Kg7 {[%emt 0:00:30]} (45... b6 $17 {...bxc5+ is the strong threat.} 46. Na4 (46. cxb6 $2 {perishes.} c5+ 47. bxc5 Nc6+ 48. Kxd5 Rxe3 $19) 46... bxc5+ (46... b5 47. Nb6 $11) 47. Nxc5 Rb8 48. Nxa6 Rb5 (48... Rb6 49. f4 $17)) 46. Rh2 {[%emt 0:00:06]} (46. Rh1 $11) 46... Kf7 {[%emt 0:00:38]} (46... Rd7 $15) 47. Na4 {[%emt 0:00:40]} ({White should play} 47. Rh3 $1 $11) 47... Kg7 {[%emt 0:03:11]} (47... Ra8 $15) 48. Nb6 {[%emt 0:02:15]} (48. Nc3 $11) 48... Kf8 {[%emt 0:03:49]} 49. Rh1 {[%emt 0:04:12]} Nf7 {[%emt 0:00:00]} 50. Rxe7 {[%emt 0:00:00]} Kxe7 {[%emt 0:00:00]} 51. Re1 {[%emt 0:00:00]} Nh6 {[%emt 0:00:00]} 52. e4 {[%emt 0:00:00] Wards off Nf5+} Kf7 {[%emt 0:00:29] Weighted Error Value: White=0.26 (precise) /Black=0.21 (precise) .  Mistake:       	White=6     	Black=4      Inaccurate:     	White=4     	Black=7      OK:         	White=12    	Black=13     Strong:       	---       	Black=1} 1/2-1/2

[Event "German Bundesliga 2023-24"]
[Site "Germany"]
[Date "2024.02.04"]
[Round "8.9"]
[White "Ivic, Velimir"]
[Black "Parligras, Mircea-Emilian"]
[Result "1/2-1/2"]
[ECO "A34"]
[WhiteElo "2562"]
[BlackElo "2561"]
[Annotator "RC"]
[PlyCount "104"]
[EventDate "2023.10.20"]
[EventType "team-tourn"]
[EventCountry "GER"]
[SourceTitle "playchess.com"]
[Source "ChessBase"]
[SourceQuality "1"]
[TimeControl "40/6000+30:3000+30"]

1. c4 {[%emt 0:00:08]} Nf6 {[%emt 0:01:00]} 2. Nc3 {[%emt 0:00:23]} c5 {[%emt 0:00:44]} 3. Nf3 {[%emt 0:00:28]} Nc6 {[%emt 0:00:18]} 4. g3 {[%emt 0:00:15]} d5 {[%emt 0:01:14]} 5. cxd5 {[%emt 0:00:38]} Nxd5 {[%emt 0:00:08]} 6. Bg2 {[%emt 0:00:05]} g6 {[%emt 0:01:02]} 7. h4 {[%emt 0:01:28]} h6 {[%emt 0:05:43]} 8. Nxd5 {[%emt 0:03:05]} Qxd5 {[%emt 0:00:24]} 9. d3 {[%emt 0:00:14]} Bg7 {[%emt 0:01:12]} 10. Be3 {[%emt 0:00:53]} Bxb2 {[%emt 0:22:11]} 11. O-O {[%emt 0:00:22]} Qd6 {[%emt 0:11:45]} 12. Rb1 {[%emt 0:14:30]} Bg7 {[%emt 0:00:25]} 13. Qc1 {[%emt 0:07:51]} Nd4 {[%emt 0:07:20]} 14. Nxd4 {[%emt 0:00:54]} cxd4 {[%emt 0:00:11]} 15. Bf4 {[%emt 0:00:42]} Qe6 {[%emt 0:10:44]} 16. Qd2 {[%emt 0:12:59]} Qf5 {[%emt 0:14:55]} 17. Be4 {[%emt 0:09:03]} Qd7 {[%emt 0:02:11]} 18. Qa5 {[%emt 0:01:57]} g5 {[%emt 0:07:59]} 19. hxg5 {[%emt 0:09:27]} hxg5 {[%emt 0:00:05]} 20. Bxg5 {[%emt 0:01:00]} Qh3 {[%emt 0:02:16]} 21. Bh4 {[%emt 0:01:56]} Bf6 {[%emt 0:08:37]} 22. Bg2 {[%emt 0:07:34]} Qe6 {[%emt 0:00:06]} 23. Bxf6 {[%emt 0:03:00]} Qxf6 {[%emt 0:00:05]} 24. Rfc1 {[%emt 0:03:42]} Qh6 {[%emt 0:07:09]} 25. Qa4+ {[%emt 0:03:37]} Bd7 {[%emt 0:00:05]} 26. Qxd4 {[%emt 0:00:14]} Qh2+ {[%emt 0:00:23]} 27. Kf1 {[%emt 0:00:03]} Rd8 {[%emt 0:00:05]} 28. Ke1 {[%emt 0:05:19]} Be6 {[%emt 0:05:09]} 29. Qc3 {[%emt 0:03:06]} f6 {[%emt 0:00:32]} 30. Bxb7 {[%emt 0:05:41]} Qg1+ {[%emt 0:00:05]} 31. Kd2 {[%emt 0:00:03]} Qxf2 {[%emt 0:00:02]} 32. Rh1 {[%emt 0:01:34]} Kf7 {[%emt 0:00:19]} 33. Qc7 {[%emt 0:08:34]} Rd7 {[%emt 0:00:16]} 34. Qxd7 {[%emt 0:03:06]} Bxd7 {[%emt 0:01:39]} 35. Rxh8 {[%emt 0:00:06]} Qxg3 {[%emt 0:00:20]} 36. Rh7+ {[%emt 0:02:27]} Kf8 {[%emt 0:00:50]} 37. Be4 {[%emt 0:00:33]} Qg5+ {[%emt 0:00:15]} 38. Kc3 {[%emt 0:01:42]} Qc5+ {[%emt 0:00:29]} 39. Kd2 {[%emt 0:00:17]} Qg5+ {[%emt 0:00:13]} 40. Kc3 {[%emt 0:00:51]} Qc5+ {[%emt 0:01:15]} 41. Kd2 {[%emt 0:50:18]} Qg5+ {[%emt 0:07:13]} 42. Kc3 {[%emt 0:00:00]} Qa5+ {[%emt 0:17:49]} 43. Kb2 {[%emt 0:00:00]} f5 {[%emt 0:13:12]} 44. Bf3 {[%emt 0:00:00]} Be6 {[%emt 0:05:14]} 45. Kc2 {[%emt 0:00:00]} Qxa2+ {[%emt 0:00:18]} 46. Rb2 {[%emt 0:00:00]} Qa4+ {[%emt 0:00:05]} 47. Kd2 {[%emt 0:00:00]} Qa5+ {[%emt 0:00:10]} 48. Kd1 {[%emt 0:00:00]} Qa1+ {[%emt 0:00:39]} 49. Kc2 {[%emt 0:00:00]} Qa4+ {[%emt 0:00:03]} 50. Kd2 {[%emt 0:00:00]} Qa5+ {[%emt 0:00:07]} 51. Kd1 {[%emt 0:00:00]} Qa1+ {[%emt 0:00:41]} 52. Kc2 {[%emt 0:00:00]} Qa4+ {[%emt 0:00:04]} 1/2-1/2

[Event "German Bundesliga 2023-24"]
[Site "Germany"]
[Date "2024.02.04"]
[Round "8.9"]
[White "Pfreundt, Jakob"]
[Black "Vitiugov, Nikita"]
[Result "0-1"]
[ECO "E06"]
[WhiteElo "2455"]
[BlackElo "2686"]
[Annotator "TA"]
[PlyCount "70"]
[EventDate "2023.10.20"]
[EventType "team-tourn"]
[EventCountry "GER"]
[SourceTitle "playchess.com"]
[Source "ChessBase"]
[SourceQuality "1"]
[TimeControl "40/6000+30:3000+30"]

{[%evp 9,70,3,28,0,0,1,15,17,17,13,7,0,0,0,3,0,0,0,-12,-46,-19,-25,-17,-20,-23,-55,-66,-102,-105,-120,-114,-114,-102,-95,-84,-78,-97,-91,-95,-94,-87,-94,-101,-177,-168,-169,-158,-158,-164,-185,-177,-200,-189,-242,-193,-262,-287,-241,-237,-614,-627,-678,-680]} 1. Nf3 {[%emt 0:00:42]} Nf6 {[%emt 0:01:52]} 2. g3 {[%emt 0:01:40]} d5 {[%emt 0:00:44]} 3. Bg2 {[%emt 0:00:08]} e6 {[%emt 0:01:04]} 4. d4 {[%emt 0:05:55]} Be7 {[%emt 0:03:34]} 5. c4 {[%emt 0:01:25]} c6 {[%emt 0:00:23]} 6. Nc3 {[%emt 0:02:27]} Nbd7 {[%emt 0:02:07]} 7. Qd3 {[%emt 0:02:28]} b6 {[%emt 0:01:18]} 8. cxd5 {[%emt 0:03:48] The position is equal.} cxd5 {[%emt 0:00:52]} 9. Bf4 {[%emt 0:02:33]} Nh5 {[%emt 0:02:50]} 10. Bd2 {[%emt 0:09:39]} Bb7 {[%emt 0:00:39]} 11. h4 {[%emt 0:05:07]} Nhf6 {[%emt 0:06:58]} 12. Bf4 {[%emt 0:04:32]} a6 {[%emt 0:03:24]} 13. a4 {[%emt 0:01:25]} Rc8 {[%emt 0:05:28]} 14. Kf1 {[%emt 0:25:49]} Bb4 {[%emt 0:04:57]} 15. Na2 {[%emt 0:03:04]} Qe7 {[%emt 0:01:52]} 16. Nxb4 {[%emt 0:03:54]} Qxb4 {[%emt 0:00:13]} 17. Bh3 {[%emt 0:06:07]} Qxb2 {[%emt 0:03:34]} 18. Rb1 {[%emt 0:03:48]} Qa2 {[%emt 0:08:54]} 19. Kg2 {[%emt 0:00:57]} Qxa4 {[%emt 0:03:49]} 20. Ra1 {[%emt 0:12:31]} Qc2 {[%emt 0:03:51]} 21. Qa3 {[%emt 0:07:36] [#]} Qc3 {[%emt 0:06:04]} (21... Qxe2 $2 {loses.} 22. Rhe1 Qb5 23. Rab1 $18) 22. Qxc3 {[%emt 0:04:53]} Rxc3 {[%emt 0:00:13]} 23. Rhc1 {[%emt 0:00:03]} Rc4 {[%emt 0:09:06]} 24. Nd2 {[%emt 0:00:15]} Rc8 {[%emt 0:14:59]} 25. Rxc8+ {[%emt 0:01:03]} Bxc8 {[%emt 0:00:02]} 26. Bd6 {[%emt 0:00:27]} (26. Rc1 $17 {might work better.} O-O 27. g4) 26... Kd8 $19 {[%emt 0:00:32]} 27. Rc1 {[%emt 0:00:23]} Ne8 {[%emt 0:02:03]} 28. Bf4 {[%emt 0:01:10]} h6 {[%emt 0:03:32]} 29. Nf3 {[%emt 0:00:20]} a5 {[%emt 0:01:46]} 30. Ne5 {[%emt 0:00:34]} Nxe5 {[%emt 0:00:07]} 31. Bxe5 {[%emt 0:00:39]} (31. dxe5 $142 Bb7 32. e4) 31... Kd7 {[%emt 0:04:06]} 32. Bb8 {[%emt 0:00:05]} (32. Kg1 {is a better defense.}) 32... Bb7 {[%emt 0:02:47] ...Bc6 would now be deadly.} 33. Ba7 {[%emt 0:00:50]} b5 {[%emt 0:00:21]} 34. Rc5 $2 {[%emt 0:00:33] [#]} (34. Bb6) 34... Bc6 {[%emt 0:01:34]} 35. Bb6 {[%emt 0:00:18]} Nd6 {[%emt 0:00:42] Weighted Error Value: White=0.25 (precise) /Black=0.05 (flawless) .  Mistake:       	White=4     	---        Inaccurate:     	White=3     	Black=1      OK:         	White=7     	Black=19     Best:        	White=3     	---} 0-1

[Event "German Bundesliga 2023-24"]
[Site "Germany"]
[Date "2024.02.04"]
[Round "8.10"]
[White "Donchenko, Alexander"]
[Black "Abel, Dennes"]
[Result "1/2-1/2"]
[ECO "E94"]
[WhiteElo "2664"]
[BlackElo "2404"]
[Annotator "TA"]
[PlyCount "89"]
[EventDate "2023.10.20"]
[EventType "team-tourn"]
[EventCountry "GER"]
[SourceTitle "playchess.com"]
[Source "ChessBase"]
[SourceQuality "1"]
[TimeControl "40/6000+30:3000+30"]

{[%evp 18,89,78,41,67,39,44,31,52,29,25,16,21,12,29,19,34,19,25,-26,-37,-34,-43,-42,-16,-18,-10,-5,-12,-8,-16,-8,0,-54,-41,-43,10,0,0,0,0,8,8,1,1,7,17,0,0,0,0,0,0,0,0,0,0,0,0,0,0,0,0,-69,0,0,0,0,0,0,0,0,0,0]} 1. d4 {[%emt 0:00:04]} Nf6 {[%emt 0:00:28]} 2. c4 {[%emt 0:00:16]} g6 {[%emt 0:00:32]} 3. Nc3 {[%emt 0:00:57]} Bg7 {[%emt 0:00:29]} 4. e4 {[%emt 0:00:09]} d6 {[%emt 0:00:06]} 5. Be2 {[%emt 0:00:18]} O-O {[%emt 0:00:45]} 6. Nf3 {[%emt 0:00:06]} Nbd7 {[%emt 0:00:25]} 7. O-O {[%emt 0:00:38]} e5 {[%emt 0:00:17]} 8. Be3 {[%emt 0:01:48]} Qe7 {[%emt 0:00:39]} 9. Qc2 {[%emt 0:03:43]} c6 {[%emt 0:01:04]} 10. Rad1 {[%emt 0:15:04]} h6 {[%emt 0:01:14]} 11. dxe5 {[%emt 0:04:45] White is more active.} dxe5 {[%emt 0:05:38]} 12. a3 {[%emt 0:01:16]} Nh5 {[%emt 0:08:18] White is slightly better.} 13. Qc1 {[%emt 0:13:56]} Nf4 {[%emt 0:02:18]} 14. Bxf4 {[%emt 0:01:20]} exf4 {[%emt 0:00:06]} 15. Qxf4 {[%emt 0:00:07]} Re8 {[%emt 0:05:02]} 16. Rfe1 {[%emt 0:07:22]} h5 {[%emt 0:18:36]} 17. Qe3 {[%emt 0:09:54]} Nc5 {[%emt 0:12:13][%cal Oc8g4]} 18. Nd4 {[%emt 0:02:07]} (18. Nd2 $142) 18... Nxe4 $11 {[%emt 0:23:23]} 19. Bf3 {[%emt 0:01:49] [#]} Nxc3 {[%emt 0:04:24]} 20. Qxc3 {[%emt 0:00:07]} Be6 {[%emt 0:01:39] Hoping for ...c5. This pair of bishops is nice.} 21. Qc1 {[%emt 0:05:26]} Bxd4 {[%emt 0:00:55]} 22. Rxd4 {[%emt 0:00:03]} Rad8 {[%emt 0:00:29]} 23. Qc3 {[%emt 0:02:30]} Rxd4 {[%emt 0:07:05]} 24. Qxd4 {[%emt 0:00:03]} a6 {[%emt 0:00:05]} 25. h4 {[%emt 0:04:51]} (25. Qc3 $11) 25... Rd8 $1 $15 {[%emt 0:01:37]} 26. Qf4 {[%emt 0:01:19]} Qc5 {[%emt 0:01:30] [#]} (26... Kg7 $15) 27. Rxe6 $1 $11 {[%emt 0:05:18]} fxe6 {[%emt 0:00:44][%mdl 4096] Endgame. KQR-KQB} 28. Qf6 $1 {[%emt 0:00:02][%csl LRd8,LRe6,LRg6]} Rf8 {[%emt 0:06:07]} 29. Qxg6+ {[%emt 0:00:18]} Kh8 {[%emt 0:00:01]} 30. Qh6+ {[%emt 0:04:04]} (30. Qxh5+ Qxh5 31. Bxh5 Rf4 $17) 30... Kg8 {[%emt 0:00:02]} 31. Qxe6+ {[%emt 0:00:10]} (31. Qxh5 $2 Qxh5 32. Bxh5 Rf4 $19) 31... Kg7 {[%emt 0:01:14]} 32. b4 {[%emt 0:03:26]} Qf5 {[%emt 0:02:02]} 33. Qe2 {[%emt 0:00:26]} Qf4 {[%emt 0:02:36]} 34. Bxh5 {[%emt 0:00:49] aiming for g3.} Qc1+ {[%emt 0:02:09]} 35. Kh2 {[%emt 0:00:29] Threatens to win with g3.} (35. Qd1 {simplifies} Qxd1+ 36. Bxd1 Rf4 37. g4) 35... Qf4+ {[%emt 0:00:10]} 36. Kh3 {[%emt 0:00:59]} Qf5+ {[%emt 0:01:22]} 37. Bg4 {[%emt 0:06:00]} Qxf2 {[%emt 0:00:06]} 38. Qe7+ {[%emt 0:00:14]} Qf7 {[%emt 0:00:55]} 39. Qc5 {[%emt 0:00:40]} Qf6 {[%emt 0:00:45]} 40. h5 {[%emt 0:02:13]} ({White should try} 40. Qe3 $11) 40... Rf7 {[%emt 0:01:30]} (40... Re8 $1 $15 41. Qa7 Kh6 42. Qxb7 Re3+ 43. Bf3 Qf5+ (43... Rxa3 44. Qd7 $11) 44. Kg3 Qe5+ 45. Kh3 (45. Kf2 $2 Qd4 $19) 45... Qxh5+ (45... Rxa3 $2 {is the wrong capture.} 46. Qxc6+ Kg7 47. Qg6+ Kh8 48. c5 $18) 46. Kg3 Qe5+ (46... Rxa3 47. Qxc6+ Kg7 48. Kf4 $11) 47. Kf2 Qd4 (47... Rxa3 48. Qxc6+ Kg5 49. Qc5 $11)) 41. b5 {[%emt 0:57:08] The position is equal.} cxb5 {[%emt 0:08:28]} 42. cxb5 {[%emt 0:00:00]} b6 {[%emt 0:00:30]} 43. Qc4 {[%emt 0:00:00]} axb5 {[%emt 0:05:51]} 44. Qxb5 {[%emt 0:00:00]} Re7 {[%emt 0:02:09]} 45. a4 {[%emt 0:00:00] Weighted Error Value: White=0.12 (very precise) /Black=0.10 (very precise) .  Mistake:       	White=3     	Black=2      Inaccurate:     	White=1     	Black=1      OK:         	White=13    	Black=15     Best:        	White=1     	Black=1      Strong:       	---       	Black=1} 1/2-1/2